fUST/lending_fUST_20240811
["ID","MTS","AMOUNT","RATE_DAILY","PERIOD"]
[334642364,1723378246554,-500.0,0.00020821,3]
[334642365,1723378246563,-1227.07,0.00020821,3]
[334642366,1723378246573,-500.0,0.00020821,3]
[334642367,1723378246584,-500.0,0.00020821,3]
[334642368,1723378246595,-500.0,0.00020821,3]
[334642369,1723378246605,-587.79,0.00020821,3]
[334642370,1723378246616,-500.0,0.00020821,3]
[334642371,1723378246626,-500.0,0.00020821,3]
[334642372,1723378246636,-665.17,0.00020821,3]
[334642373,1723378246646,-647.43,0.00020821,3]
[334642374,1723378246656,-500.0,0.00020821,3]
[334642375,1723378246666,-500.0,0.00020821,3]
[334642376,1723378246676,-653.61,0.00020821,3]
[334642377,1723378246686,-506.61953356,0.00020821,3]
[334642378,1723378246699,-500.0,0.00020821,3]
[334642379,1723378246710,-558.95,0.00020821,3]
[334642380,1723378246719,-298.225132,0.00020821,2]
[334642381,1723378246730,-298.225132,0.00020821,2]
[334642382,1723378246739,-500.0,0.00020821,3]
[334642383,1723378246749,-298.225132,0.00020821,2]
[334642384,1723378246759,-298.225132,0.00020821,2]
[334642385,1723378246770,-500.0,0.00020821,3]
[334642386,1723378246781,-155.212573,0.00020821,2]
[334642387,1723378246791,-734.69,0.00020821,3]
[334642388,1723378246801,-850.914584,0.00020821,2]
[334642389,1723378246810,-500.0,0.00020821,3]
[334642390,1723378246819,-1124.79,0.00020821,3]
[334642391,1723378246829,-850.914584,0.00020821,2]
[334642392,1723378246838,-500.0,0.00020821,3]
[334642393,1723378246848,-850.914584,0.00020821,2]
[334642394,1723378246858,-850.914584,0.00020821,2]
[334642395,1723378246869,-500.0,0.00020821,3]
[334642396,1723378246878,-1248.59,0.00020821,3]
[334642397,1723378246889,-500.0,0.00020821,3]
[334642398,1723378246900,-967.88,0.00020821,3]
[334642399,1723378246912,-524.41572414,0.00020821,3]
[334642400,1723378246923,-630.46,0.00020821,3]
[334642401,1723378246932,-877.67,0.00020821,3]
[334642402,1723378246941,-338.835098,0.00020821,2]
[334642403,1723378246950,-338.835098,0.00020821,2]
[334642404,1723378246959,-500.0,0.00020821,3]
[334642405,1723378246969,-338.835098,0.00020821,2]
[334642406,1723378246978,-338.835098,0.00020821,2]
[334642407,1723378246987,-500.0,0.00020821,3]
[334642408,1723378246996,-500.0,0.00020821,3]
[334642409,1723378247005,-500.0,0.00020821,3]
[334642410,1723378247014,-500.0,0.00020821,3]
[334642411,1723378247024,-448.722236,0.00020821,2]
[334642412,1723378247033,-448.722236,0.00020821,2]
[334642413,1723378247042,-448.722236,0.00020821,2]
[334642414,1723378247051,-514.15,0.00020821,3]
[334642415,1723378247061,-448.722236,0.00020821,2]
[334642416,1723378247070,-500.0,0.00020821,3]
[334642417,1723378247079,-1261.66,0.00020821,3]
[334642418,1723378247088,-1002.27,0.00020821,3]
[334642419,1723378247098,-502.98517812,0.00020821,3]
[334642420,1723378247107,-500.0,0.00020821,3]
[334642421,1723378247116,-505.11019263,0.00020821,3]
[334642422,1723378247126,-500.0,0.00020821,3]
[334642423,1723378247135,-1318.07,0.00020821,3]
[334642424,1723378247144,-500.0,0.00020821,3]
[334642425,1723378247154,-503.40576337,0.00020821,3]
[334642426,1723378247163,-500.0,0.00020821,3]
[334642427,1723378247172,-500.0,0.00020821,3]
[334642428,1723378247182,-500.0,0.00020821,3]
[334642429,1723378247192,-506.01121711,0.00020821,3]
[334642430,1723378247202,-500.0,0.00020821,3]
[334642431,1723378247211,-512.32607829,0.00020821,3]
[334642432,1723378247221,-500.0,0.00020821,3]
[334642433,1723378247230,-500.0,0.00020821,3]
[334642434,1723378247239,-500.0,0.00020821,3]
[334642435,1723378247248,-500.0,0.00020821,3]
[334642436,1723378247258,-508.8221319,0.00020821,3]
[334642437,1723378247267,-500.0,0.00020821,3]
[334642438,1723378247276,-500.0,0.00020821,3]
[334642439,1723378247286,-504.87484438,0.00020821,3]
[334642440,1723378247295,-500.0,0.00020821,3]
[334642441,1723378247306,-151.0,0.00020821,2]
[334642442,1723378247315,-151.0,0.00020821,2]
[334642443,1723378247325,-505.81764935,0.00020821,3]
[334642444,1723378247334,-500.0,0.00020821,3]
[334642445,1723378247343,-500.0,0.00020821,3]
[334642446,1723378247352,-500.0,0.00020821,3]
[334642447,1723378247361,-500.0,0.00020821,3]
[334642448,1723378247371,-1469.3,0.00020821,3]
[334642449,1723378247380,-500.0,0.00020821,3]
[334642450,1723378247390,-501.66092667,0.00020821,3]
[334642451,1723378247400,-500.0,0.00020821,3]
[334642452,1723378247409,-500.0,0.00020821,3]
[334642453,1723378247418,-1657.76,0.00020821,3]
[334642454,1723378247428,-178.164987,0.00020821,2]
[334642455,1723378247437,-178.164987,0.00020821,2]
[334642456,1723378247448,-500.88151954,0.00020821,3]
[334642457,1723378247462,-178.164987,0.00020821,2]
[334642458,1723378247471,-178.164987,0.00020821,2]
[334642459,1723378247481,-500.0,0.00020821,3]
[334642460,1723378247491,-500.0,0.00020821,3]
[334642461,1723378247500,-500.0,0.00020821,3]
[334642462,1723378247509,-500.0,0.00020821,3]
[334642463,1723378247519,-500.0,0.00020821,3]
[334642464,1723378247529,-2220.34,0.00020821,3]
[334642465,1723378247540,-500.0,0.00020821,3]
[334642466,1723378247553,-718.72,0.00020821,3]
[334642467,1723378247563,-500.0,0.00020821,3]
[334642468,1723378247572,-151.0,0.00020821,2]
[334642469,1723378247582,-500.0,0.00020821,3]
[334642470,1723378247592,-500.0,0.00020821,3]
[334642471,1723378247602,-281.520702,0.00020821,2]
[334642472,1723378247611,-500.0,0.00020821,3]
[334642473,1723378247621,-509.41383,0.00020821,3]
[334642474,1723378247630,-500.0,0.00020821,3]
[334642475,1723378247765,-646.07888611,0.00020821,3]
[334642476,1723378247775,-650.6,0.00020821,3]
[334642477,1723378247785,-501.06827492,0.00020821,3]
[334642478,1723378247794,-500.0,0.00020821,3]
[334642479,1723378247808,-236.475489,0.00020821,2]
[334642480,1723378247817,-236.475489,0.00020821,2]
[334642481,1723378247827,-500.0,0.00020821,3]
[334642482,1723378247837,-1330.54,0.00020821,3]
[334642483,1723378247846,-509.81422809,0.00020821,3]
[334642484,1723378247855,-501.6350984,0.00020821,3]
[334642485,1723378247864,-236.475489,0.00020821,2]
[334642486,1723378247873,-236.475489,0.00020821,2]
[334642487,1723378247883,-500.0,0.00020821,3]
[334642488,1723378247892,-500.0,0.00020821,3]
[334642489,1723378247902,-713.52,0.00020821,3]
[334642490,1723378247911,-500.0,0.00020821,3]
[334642491,1723378247922,-298.869484,0.00020821,2]
[334642492,1723378247932,-298.869484,0.00020821,2]
[334642493,1723378247942,-500.0,0.00020821,3]
[334642494,1723378247951,-500.0,0.00020821,3]
[334642495,1723378247960,-298.869484,0.00020821,2]
[334642496,1723378247970,-500.0,0.00020821,3]
[334642497,1723378247979,-1807.35,0.00020821,3]
[334642498,1723378247988,-298.869484,0.00020821,2]
[334642499,1723378247997,-500.0,0.00020821,3]
[334642500,1723378248006,-1230.81,0.00020821,3]
[334642501,1723378248015,-505.08188763,0.00020821,3]
[334642502,1723378248025,-500.0,0.00020821,3]
[334642503,1723378248035,-2207.41,0.00020821,3]
[334642504,1723378248045,-503.96984952,0.00020821,3]
[334642505,1723378248057,-524.11,0.00020821,3]
[334642506,1723378248067,-503.00001452,0.00020821,3]
[334642507,1723378248077,-1677.04,0.00020821,3]
[334642508,1723378248087,-505.19639206,0.00020821,3]
[334642509,1723378248097,-500.0,0.00020821,3]
[334642510,1723378248106,-1204.05,0.00020821,3]
[334642511,1723378248116,-500.0,0.00020821,3]
[334642512,1723378248125,-2170.98,0.00020821,3]
[334642513,1723378248136,-504.94205813,0.00020821,3]
[334642514,1723378248147,-2195.35,0.00020821,3]
[334642515,1723378248157,-502.50116967,0.00020821,3]
[334642516,1723378248168,-1253.92,0.00020821,3]
[334642517,1723378248177,-502.7216176,0.00020821,3]
[334642518,1723378248187,-431.23508725,0.00020821,3]
[334642519,1723378248196,-500.0,0.00020821,3]
[334642520,1723378248206,-500.0,0.00020821,3]
[334642521,1723378248215,-596.03,0.00020821,3]
[334642522,1723378248225,-500.0,0.00020821,3]
[334642523,1723378248235,-2480.16,0.00020821,3]
[334642524,1723378248245,-500.0,0.00020821,3]
[334642525,1723378248255,-457.42557869,0.00020821,3]
[334642526,1723378248265,-500.0,0.00020821,3]
[334642527,1723378248275,-505.02754684,0.00020821,3]
[334642528,1723378248285,-501.07225668,0.00020821,3]
[334642529,1723378248295,-500.0,0.00020821,3]
[334642530,1723378248308,-500.0,0.00020821,3]
[334642531,1723378248317,-11302.7,0.00020821,3]
[334642532,1723378248327,-922.87,0.00020821,3]
[334642533,1723378248337,-1442.31,0.00020821,3]
[334642534,1723378248347,-2289.43,0.00020821,3]
[334642535,1723378248357,-502.01891898,0.00020821,3]
[334642536,1723378248368,-500.0,0.00020821,3]
[334642537,1723378248378,-2108.16,0.00020821,3]
[334642538,1723378248389,-500.0,0.00020821,3]
[334642539,1723378248399,-500.0,0.00020821,3]
[334642540,1723378248409,-3496.99,0.00020821,3]
[334642541,1723378248418,-500.0,0.00020821,3]
[334642542,1723378248428,-500.0,0.00020821,3]
[334642543,1723378248438,-501.88089988,0.00020821,3]
[334642544,1723378248449,-500.0,0.00020821,3]
[334642545,1723378248458,-603.37,0.00020821,3]
[334642546,1723378248471,-502.66916253,0.00020821,3]
[334642547,1723378248481,-2122.37,0.00020821,3]
[334642548,1723378248491,-502.24014569,0.00020821,3]
[334642549,1723378248502,-500.0,0.00020821,3]
[334642550,1723378248511,-742.26,0.00020821,3]
[334642551,1723378248521,-555.193424,0.00020821,2]
[334642552,1723378248531,-555.193424,0.00020821,2]
[334642553,1723378248540,-620.44,0.00020821,3]
[334642554,1723378248556,-555.193424,0.00020821,2]
[334642555,1723378248567,-555.193424,0.00020821,2]
[334642556,1723378248577,-2117.66,0.00020821,3]
[334642557,1723378248587,-500.0,0.00020821,3]
[334642558,1723378248598,-500.0,0.00020821,3]
[334642559,1723378248608,-500.0,0.00020821,3]
[334642560,1723378248617,-500.0,0.00020821,3]
[334642561,1723378248627,-208.82481,0.00020821,2]
[334642562,1723378248638,-504.48290795,0.00020821,3]
[334642563,1723378248648,-500.0,0.00020821,3]
[334642564,1723378248659,-500.0,0.00020821,3]
[334642565,1723378248668,-506.2683459,0.00020821,3]
[334642566,1723378248677,-295.15124731,0.00020821,3]
[334642567,1723378248687,-500.0,0.00020821,3]
[334642568,1723378248698,-500.0,0.00020821,3]
[334642569,1723378248708,-550.05,0.00020821,3]
[334642570,1723378248717,-562.19599554,0.00020821,3]
[334642571,1723378248727,-680.97,0.00020821,3]
[334642572,1723378248736,-500.0,0.00020821,3]
[334642573,1723378248745,-500.0,0.00020821,3]
[334642574,1723378248755,-500.0,0.00020821,3]
[334642575,1723378248765,-500.0,0.00020821,3]
[334642576,1723378248775,-293.90482398,0.00020821,3]
[334642577,1723378248784,-202.876898,0.00020821,2]
[334642578,1723378248793,-500.0,0.00020821,3]
[334642579,1723378248806,-820.2,0.00020821,3]
[334642580,1723378248816,-503.11790601,0.00020821,3]
[334642581,1723378248826,-572.95,0.00020821,3]
[334642582,1723378248836,-500.0,0.00020821,3]
[334642583,1723378248844,-870.51,0.00020821,3]
[334642584,1723378248854,-514.50075394,0.00020821,3]
[334642585,1723378248863,-974.77,0.00020821,3]
[334642586,1723378248872,-500.0,0.00020821,3]
[334642587,1723378248881,-1220.03,0.00020821,3]
[334642589,1723378248890,-1102.42,0.00020821,3]
[334642591,1723378248900,-500.0,0.00020821,3]
[334642593,1723378248909,-2873.95,0.00020821,3]
[334642595,1723378248920,-1481.7,0.00020821,3]
[334642597,1723378248929,-502.27750325,0.00020821,3]
[334642599,1723378248938,-500.0,0.00020821,3]
[334642601,1723378248948,-1531.63,0.00020821,3]
[334642603,1723378248958,-930.37,0.00020821,3]
[334642605,1723378248967,-500.0,0.00020821,3]
[334642607,1723378248978,-500.0,0.00020821,3]
[334642609,1723378248988,-151.0,0.00020821,2]
[334642611,1723378248997,-151.0,0.00020821,2]
[334642613,1723378249006,-500.0,0.00020821,3]
[334642615,1723378249016,-500.0,0.00020821,3]
[334642617,1723378249025,-3906.89,0.00020821,3]
[334642619,1723378249034,-500.0,0.00020821,3]
[334642621,1723378249043,-1267.32,0.00020821,3]
[334642624,1723378249071,-11697.12,0.00020821,3]
[334642626,1723378249081,-500.0,0.00020821,3]
[334642628,1723378249091,-501.58601704,0.00020821,3]
[334642629,1723378249100,-1122.56,0.00020821,3]
[334642631,1723378249110,-7855.68,0.00020821,3]
[334642632,1723378249119,-500.0,0.00020821,3]
[334642633,1723378249129,-500.0,0.00020821,3]
[334642634,1723378249139,-663.887588,0.00020821,2]
[334642635,1723378249149,-663.887588,0.00020821,2]
[334642636,1723378249158,-500.0,0.00020821,3]
[334642637,1723378249167,-1324.91,0.00020821,3]
[334642638,1723378249177,-663.887588,0.00020821,2]
[334642639,1723378249187,-1778.96,0.00020821,3]
[334642640,1723378249198,-663.887588,0.00020821,2]
[334642641,1723378249208,-5405.26,0.00020821,3]
[334642642,1723378249219,-500.0,0.00020821,3]
[334642643,1723378249229,-500.0,0.00020821,3]
[334642644,1723378249238,-1864.71,0.00020821,3]
[334642645,1723378249249,-500.0,0.00020821,3]
[334642646,1723378249259,-874.56,0.00020821,3]
[334642647,1723378249268,-819.67,0.00020821,3]
[334642648,1723378249277,-500.0,0.00020821,3]
[334642649,1723378249287,-500.0,0.00020821,3]
[334642650,1723378249296,-1400.35,0.00020821,3]
[334642651,1723378249310,-500.0,0.00020821,3]
[334642652,1723378249321,-500.0,0.00020821,3]
[334642653,1723378249331,-1732.79,0.00020821,3]
[334642654,1723378249340,-500.0,0.00020821,3]
[334642655,1723378249352,-844.31,0.00020821,3]
[334642656,1723378249362,-500.0,0.00020821,3]
[334642657,1723378249371,-500.0,0.00020821,3]
[334642658,1723378249383,-500.0,0.00020821,3]
[334642659,1723378249393,-500.0,0.00020821,3]
[334642660,1723378249402,-500.0,0.00020821,3]
[334642661,1723378249411,-500.0,0.00020821,3]
[334642662,1723378249421,-1224.91,0.00020821,3]
[334642663,1723378249430,-500.0,0.00020821,3]
[334642664,1723378249440,-500.0,0.00020821,3]
[334642665,1723378249451,-500.0,0.00020821,3]
[334642666,1723378249463,-500.0,0.00020821,3]
[334642667,1723378249472,-500.0,0.00020821,3]
[334642668,1723378249482,-500.0,0.00020821,3]
[334642669,1723378249492,-500.0,0.00020821,3]
[334642670,1723378249502,-639.61126325,0.00020821,3]
[334642671,1723378249512,-500.0,0.00020821,3]
[334642672,1723378249521,-724.29,0.00020821,3]
[334642673,1723378249531,-268.169195,0.00020821,2]
[334642674,1723378249540,-268.169195,0.00020821,2]
[334642675,1723378249550,-917.33,0.00020821,3]
[334642676,1723378249564,-500.0,0.00020821,3]
[334642677,1723378249575,-549.3,0.00020821,3]
[334642678,1723378249587,-500.0,0.00020821,3]
[334642679,1723378249597,-500.0,0.00020821,3]
[334642680,1723378249607,-567.64,0.00020821,3]
[334642681,1723378249617,-151.0,0.00020821,2]
[334642682,1723378249627,-268.169195,0.00020821,2]
[334642683,1723378249637,-151.0,0.00020821,2]
[334642684,1723378249647,-268.169195,0.00020821,2]
[334642685,1723378249657,-2393.07,0.00020821,3]
[334642686,1723378249666,-500.0,0.00020821,3]
[334642687,1723378249676,-500.0,0.00020821,3]
[334642688,1723378249685,-500.0,0.00020821,3]
[334642689,1723378249695,-500.0,0.00020821,3]
[334642690,1723378249705,-5526.82,0.00020821,3]
[334642691,1723378249715,-500.0,0.00020821,3]
[334642692,1723378249726,-1020.6,0.00020821,3]
[334642693,1723378249736,-1253.26,0.00020821,3]
[334642694,1723378249746,-500.0,0.00020821,3]
[334642695,1723378249756,-1067.26,0.00020821,3]
[334642696,1723378249766,-1777.04,0.00020821,3]
[334642697,1723378249776,-500.0,0.00020821,3]
[334642698,1723378249785,-500.0,0.00020821,3]
[334642699,1723378249795,-500.0,0.00020821,3]
[334642700,1723378249808,-500.0,0.00020821,3]
[334642701,1723378249817,-500.0,0.00020821,3]
[334642702,1723378249826,-266.76278,0.00020821,2]
[334642703,1723378249836,-266.76278,0.00020821,2]
[334642704,1723378249845,-500.0,0.00020821,2]
[334642705,1723378249855,-500.0,0.00020821,3]
[334642706,1723378249864,-5526.95,0.00020821,3]
[334642707,1723378249874,-200.0,0.00020873,2]
[334642708,1723378249883,-200.0,0.00020873,2]
[334642709,1723378249892,-200.0,0.00020873,2]
[334642710,1723378249902,-200.0,0.00020873,2]
[334642711,1723378249911,-1000.0,0.00020908,2]
[334642712,1723378249921,-150.01,0.00020929,2]
[334642713,1723378249931,-2993.60033153,0.00020929,2]
[334642714,1723378249940,-151.0,0.00020937,2]
[334642715,1723378249950,-151.0,0.00020937,2]
[334642716,1723378249960,-1000.0,0.00020961,2]
[334642717,1723378249970,-300.0,0.00020963,2]
[334642718,1723378249980,-1000.0,0.00020969,2]
[334642719,1723378249989,-1000.0,0.0002097,2]
[334642720,1723378249998,-2605.825964,0.00020999,2]
[334642721,1723378250008,-29683.93894218,0.00021,2]
[334642722,1723378250016,-285.0,0.00021,2]
[334642723,1723378250026,-906.44622373,0.00021,2]
[334642724,1723378250035,-10000.0,0.00021,5]
[334642725,1723378250044,-3050.49586151,0.00021,2]
[334642726,1723378250057,-7485.07879379,0.00021,2]
[334642727,1723378250067,-232.81021113,0.00021,2]
[334642728,1723378250077,-1000.0,0.00021,21]
[334642729,1723378250086,-151.0,0.00021,2]
[334642730,1723378250096,-151.0,0.00021,2]
[334642731,1723378250105,-151.0,0.00021,2]
[334642732,1723378250114,-151.0,0.00021,2]
[334642733,1723378250124,-151.0,0.00021,2]
[334642734,1723378250133,-151.0,0.00021,2]
[334642735,1723378250143,-273.247663,0.00021,2]
[334642736,1723378250152,-273.247663,0.00021,2]
[334642737,1723378250162,-274.046381,0.00021,2]
[334642738,1723378250171,-274.046381,0.00021,2]
[334642739,1723378250180,-3000.0,0.00021,2]
[334642740,1723378250189,-385.8453,0.00021,2]
[334642741,1723378250198,-385.8453,0.00021,2]
[334642742,1723378250207,-298.225132,0.00021,2]
[334642743,1723378250216,-298.225132,0.00021,2]
[334642744,1723378250225,-850.914584,0.00021,2]
[334642745,1723378250234,-850.914584,0.00021,2]
[334642746,1723378250243,-338.835098,0.00021,2]
[334642747,1723378250253,-338.835098,0.00021,2]
[334642748,1723378250262,-448.722236,0.00021,2]
[334642749,1723378250272,-448.722236,0.00021,2]
[334642750,1723378250281,-663.887588,0.00021,2]
[334642751,1723378250290,-663.887588,0.00021,2]
[334642752,1723378250300,-268.169195,0.00021,2]
[334642753,1723378250312,-268.169195,0.00021,2]
[334642754,1723378250322,-266.76278,0.00021,2]
[334642755,1723378250331,-1000.0,0.00021003,2]
[334642756,1723378250340,-3000.0,0.0002101,2]
[334642757,1723378250349,-3000.0,0.0002102,2]
[334642758,1723378250359,-1000.0,0.0002102,2]
[334642759,1723378250368,-3000.0,0.0002103,2]
[334642760,1723378250493,-3000.0,0.0002104,2]
[334642761,1723378250503,-298.869484,0.0002104,2]
[334642762,1723378250512,-298.869484,0.0002104,2]
[334642763,1723378250521,-555.193424,0.0002104,2]
[334642764,1723378250530,-555.193424,0.0002104,2]
[334642765,1723378250542,-151.0,0.0002104,2]
[334642766,1723378250551,-449.50223741,0.00021049,2]
[334642767,1723378250562,-3000.0,0.0002105,2]
[334642768,1723378250571,-1000.0,0.00021051,2]
[334642769,1723378250581,-3000.0,0.0002106,2]
[334642770,1723378250591,-1000.0,0.00021068,2]
[334642771,1723378250600,-3000.0,0.0002107,2]
[334642772,1723378250610,-178.164987,0.0002107,2]
[334642773,1723378250620,-178.164987,0.0002107,2]
[334642774,1723378250629,-236.475489,0.0002107,2]
[334642775,1723378250639,-236.475489,0.0002107,2]
[334642776,1723378250648,-200.0,0.00021073,2]
[334642777,1723378250658,-154.9926017,0.00021073,2]
[334642778,1723378250670,-3000.0,0.0002108,2]
[334642779,1723378250680,-3000.0,0.0002109,2]
[334642780,1723378250689,-330.24606229,0.00021092,2]
[334642781,1723378250699,-151.0,0.00021095,2]
[334642782,1723378250708,-192.276728,0.00021095,2]
[334642783,1723378250717,-151.0,0.00021095,2]
[334642784,1723378250728,-151.0,0.00021095,2]
[334642785,1723378250740,-151.0,0.00021095,2]
[334642786,1723378250749,-151.0,0.00021095,2]
[334642787,1723378250758,-151.0,0.00021095,2]
[334642788,1723378250768,-151.0,0.00021095,2]
[334642789,1723378250778,-247.851355,0.00021095,2]
[334642790,1723378250790,-500.0,0.00021095,3]
[334642791,1723378250800,-500.0,0.00021095,3]
[334642792,1723378250811,-289.60737626,0.00021095,3]
[334642793,1723378250821,-506.74868527,0.00021095,3]
[334642794,1723378250830,-500.0,0.00021095,3]
[334642795,1723378250839,-500.0,0.00021095,3]
[334642796,1723378250849,-500.0,0.00021095,3]
[334642797,1723378250858,-500.0,0.00021095,3]
[334642798,1723378250869,-500.0,0.00021095,3]
[334642799,1723378250879,-500.0,0.00021095,3]
[334642800,1723378250889,-500.0,0.00021095,3]
[334642801,1723378250899,-500.0,0.00021095,3]
[334642802,1723378250910,-500.0,0.00021095,3]
[334642803,1723378250921,-500.0,0.00021095,3]
[334642804,1723378250931,-500.0,0.00021095,3]
[334642805,1723378250942,-500.0,0.00021095,3]
[334642806,1723378250951,-500.0,0.00021095,3]
[334642807,1723378250960,-500.0,0.00021095,3]
[334642808,1723378250969,-500.0,0.00021095,3]
[334642809,1723378250978,-500.0,0.00021095,3]
[334642810,1723378250987,-500.0,0.00021095,3]
[334642811,1723378250996,-500.0,0.00021095,3]
[334642812,1723378251007,-500.0,0.00021095,3]
[334642813,1723378251017,-500.0,0.00021095,3]
[334642814,1723378251027,-791.8,0.00021095,3]
[334642815,1723378251036,-500.0,0.00021095,3]
[334642816,1723378251046,-500.0,0.00021095,3]
[334642817,1723378251057,-675.29,0.00021095,3]
[334642818,1723378251066,-500.0,0.00021095,3]
[334642819,1723378251076,-251.906681,0.00021095,2]
[334642820,1723378251086,-251.906681,0.00021095,2]
[334642821,1723378251096,-251.906681,0.00021095,2]
[334642822,1723378251106,-251.906681,0.00021095,2]
[334642823,1723378251115,-500.0,0.00021095,3]
[334642824,1723378251124,-500.0,0.00021095,3]
[334642825,1723378251133,-528.73,0.00021095,3]
[334642826,1723378251143,-500.0,0.00021095,3]
[334642827,1723378251153,-500.0,0.00021095,3]
[334642828,1723378251163,-500.0,0.00021095,3]
[334642829,1723378251172,-585.21,0.00021095,3]
[334642830,1723378251182,-500.0,0.00021095,3]
[334642831,1723378251191,-500.0,0.00021095,3]
[334642832,1723378251201,-500.0,0.00021095,3]
[334642833,1723378251212,-500.0,0.00021095,3]
[334642834,1723378251223,-500.0,0.00021095,3]
[334642835,1723378251233,-500.0,0.00021095,3]
[334642836,1723378251244,-500.0,0.00021095,3]
[334642837,1723378251255,-500.0,0.00021095,3]
[334642838,1723378251266,-500.0,0.00021095,3]
[334642839,1723378251275,-500.0,0.00021095,3]
[334642840,1723378251285,-500.0,0.00021095,3]
[334642841,1723378251294,-569.12,0.00021095,3]
[334642842,1723378251305,-512.62,0.00021095,3]
[334642843,1723378251316,-500.0,0.00021095,3]
[334642844,1723378251325,-500.0,0.00021095,3]
[334642845,1723378251334,-500.0,0.00021095,3]
[334642846,1723378251344,-500.0,0.00021095,3]
[334642847,1723378251353,-500.0,0.00021095,3]
[334642848,1723378251363,-500.0,0.00021095,3]
[334642849,1723378251372,-757.32,0.00021095,3]
[334642850,1723378251381,-752.63,0.00021095,3]
[334642851,1723378251390,-500.0,0.00021095,3]
[334642852,1723378251399,-579.41636612,0.00021095,3]
[334642853,1723378251409,-211.35202976,0.00021095,3]
[334642854,1723378251418,-500.0,0.00021095,3]
[334642855,1723378251427,-500.0,0.00021095,3]
[334642856,1723378251437,-500.0,0.00021095,3]
[334642857,1723378251447,-500.0,0.00021095,3]
[334642858,1723378251463,-500.0,0.00021095,3]
[334642859,1723378251472,-957.84,0.00021095,3]
[334642860,1723378251481,-500.0,0.00021095,3]
[334642861,1723378251491,-500.0,0.00021095,3]
[334642862,1723378251504,-904.48,0.00021095,3]
[334642863,1723378251514,-500.0,0.00021095,3]
[334642864,1723378251525,-903.29,0.00021095,3]
[334642865,1723378251541,-500.0,0.00021095,3]
[334642866,1723378251555,-500.0,0.00021095,3]
[334642867,1723378251565,-500.0,0.00021095,3]
[334642868,1723378251575,-500.0,0.00021095,3]
[334642869,1723378251585,-500.0,0.00021095,3]
[334642870,1723378251595,-151.0,0.00021095,2]
[334642871,1723378251605,-151.0,0.00021095,2]
[334642872,1723378251617,-821.33,0.00021095,3]
[334642873,1723378251627,-500.0,0.00021095,3]
[334642874,1723378251638,-500.0,0.00021095,3]
[334642875,1723378251647,-500.0,0.00021095,3]
[334642876,1723378251657,-500.0,0.00021095,3]
[334642877,1723378251667,-500.0,0.00021095,3]
[334642878,1723378251678,-500.0,0.00021095,3]
[334642879,1723378251689,-500.0,0.00021095,3]
[334642880,1723378251699,-500.0,0.00021095,3]
[334642881,1723378251709,-500.0,0.00021095,3]
[334642882,1723378251719,-500.0,0.00021095,3]
[334642883,1723378251729,-151.0,0.00021095,2]
[334642884,1723378251739,-151.0,0.00021095,2]
[334642885,1723378251749,-500.0,0.00021095,3]